[Event "Live Chess"]
[Site "Chess.com"]
[Date "2020.05.16"]
[Round "3.22"]
[White "Diakonova, Ekaterina"]
[Black "Sucikova, Svetlana"]
[Result "1-0"]
[ECO "B18"]
[WhiteElo "2134"]
[BlackElo "2125"]
[PlyCount "173"]
[EventDate "2020.??.??"]
[TimeControl "180+2"]
[WhiteClock "0:00:08"]
[BlackClock "0:00:12"]

1. e4 {[%emt 0:00:00]} c6 {[%emt 0:00:02]} 2. d4 {[%emt 0:00:01]} d5 {[%emt 0:
00:01]} 3. Nc3 {[%emt 0:00:00]} dxe4 {[%emt 0:00:01]} 4. Nxe4 {[%emt 0:00:00]}
Bf5 {[%emt 0:00:01]} 5. Ng3 {[%emt 0:00:01]} Bg6 {[%emt 0:00:01]} 6. Nf3 {
[%emt 0:00:00]} Nd7 {[%emt 0:00:01]} 7. Bd3 {[%emt 0:00:00]} e6 {[%emt 0:00:01]
} 8. O-O {[%emt 0:00:02]} Ngf6 {[%emt 0:00:04]} 9. b3 {[%emt 0:00:01]} Be7 {
[%emt 0:00:01]} 10. Bb2 {[%emt 0:00:01]} O-O {[%emt 0:00:01]} 11. Bxg6 {
[%emt 0:00:01]} hxg6 {[%emt 0:00:03]} 12. c4 {[%emt 0:00:00]} Qc7 {[%emt 0:00:
04]} 13. Qc2 {[%emt 0:00:02]} Rad8 {[%emt 0:00:07]} 14. Rad1 {[%emt 0:00:02]}
Rfe8 {[%emt 0:00:03]} 15. a3 {[%emt 0:00:02]} Bd6 {[%emt 0:00:14]} 16. Rfe1 {
[%emt 0:00:21]} a6 {[%emt 0:00:21]} 17. Ne5 {[%emt 0:01:00]} Nf8 {[%emt 0:00:
25]} 18. Ne4 {[%emt 0:00:24]} Nxe4 {[%emt 0:00:05]} 19. Qxe4 {[%emt 0:00:04]}
Bxe5 {[%emt 0:00:02]} 20. dxe5 {[%emt 0:00:11]} Rxd1 {[%emt 0:00:05]} 21. Rxd1
{[%emt 0:00:01]} Rd8 {[%emt 0:00:02]} 22. Re1 {[%emt 0:00:05]} Qd7 {[%emt 0:00:
06]} 23. h3 {[%emt 0:01:03]} Qd3 {[%emt 0:00:04]} 24. b4 {[%emt 0:00:08]} Qxe4
{[%emt 0:00:12]} 25. Rxe4 {[%emt 0:00:01]} Rd1+ {[%emt 0:00:01]} 26. Kh2 {
[%emt 0:00:01]} Rd2 {[%emt 0:00:01]} 27. Bd4 {[%emt 0:00:01]} Rd3 {[%emt 0:00:
04]} 28. Bc5 {[%emt 0:00:03]} Nd7 {[%emt 0:00:03]} 29. Bd6 {[%emt 0:00:06]} f6
{[%emt 0:00:21]} 30. a4 {[%emt 0:00:03]} Kf7 {[%emt 0:00:34]} 31. a5 {[%emt 0:
00:02]} fxe5 {[%emt 0:00:03]} 32. Bxe5 {[%emt 0:00:01]} Nxe5 {[%emt 0:00:01]}
33. Rxe5 {[%emt 0:00:01]} Rd4 {[%emt 0:00:01]} 34. Rc5 {[%emt 0:00:01]} Ke7 {
[%emt 0:00:10]} 35. b5 {[%emt 0:00:01]} axb5 {[%emt 0:00:03]} 36. cxb5 {
[%emt 0:00:01]} Kd6 {[%emt 0:00:07]} 37. bxc6 {[%emt 0:00:01]} bxc6 {[%emt 0:
00:10]} 38. Rg5 {[%emt 0:00:01]} Ke7 {[%emt 0:00:13]} 39. Rxg6 {[%emt 0:00:02]}
Kf7 {[%emt 0:00:02]} 40. Rg5 {[%emt 0:00:01]} Ra4 {[%emt 0:00:01]} 41. Rc5 {
[%emt 0:00:01]} Kf6 {[%emt 0:00:01]} 42. Kg3 {[%emt 0:00:02]} g6 {[%emt 0:00:
03]} 43. f4 {[%emt 0:00:03]} Ke7 {[%emt 0:00:03]} 44. Rxc6 {[%emt 0:00:03]}
Rxa5 {[%emt 0:00:02]} 45. Kg4 {[%emt 0:00:02]} Kf6 {[%emt 0:00:01]} 46. Rc8 {
[%emt 0:00:03]} Rb5 {[%emt 0:00:02]} 47. Kh4 {[%emt 0:00:02]} Ra5 {[%emt 0:00:
02]} 48. Rf8+ {[%emt 0:00:03]} Kg7 {[%emt 0:00:02]} 49. Re8 {[%emt 0:00:02]}
Kf7 {[%emt 0:00:01]} 50. Rb8 {[%emt 0:00:01]} Rc5 {[%emt 0:00:02]} 51. Kg3 {
[%emt 0:00:02]} Kf6 {[%emt 0:00:01]} 52. Rb3 {[%emt 0:00:04]} Ra5 {[%emt 0:00:
01]} 53. Kf3 {[%emt 0:00:01]} Kf5 {[%emt 0:00:02]} 54. g4+ {[%emt 0:00:02]} Kf6
{[%emt 0:00:01]} 55. Kg3 {[%emt 0:00:01]} Rc5 {[%emt 0:00:02]} 56. Re3 {
[%emt 0:00:02]} Ra5 {[%emt 0:00:02]} 57. Rd3 {[%emt 0:00:03]} Rb5 {[%emt 0:00:
02]} 58. Rd8 {[%emt 0:00:02]} Ra5 {[%emt 0:00:03]} 59. Kh4 {[%emt 0:00:01]} Rb5
{[%emt 0:00:02]} 60. g5+ {[%emt 0:00:06]} Kf7 {[%emt 0:00:03]} 61. Rd7+ {
[%emt 0:00:01]} Kf8 {[%emt 0:00:03]} 62. Kg4 {[%emt 0:00:02]} Ra5 {[%emt 0:00:
03]} 63. h4 {[%emt 0:00:02]} Ra1 {[%emt 0:00:02]} 64. Kf3 {[%emt 0:00:02]} Rh1
{[%emt 0:00:04]} 65. Ke4 {[%emt 0:00:01]} Rxh4 {[%emt 0:00:01]} 66. Ke5 {
[%emt 0:00:01]} Ke8 {[%emt 0:00:04]} 67. Rg7 {[%emt 0:00:02]} Rh1 {[%emt 0:00:
01]} 68. Kxe6 {[%emt 0:00:03]} Re1+ {[%emt 0:00:01]} 69. Kf6 {[%emt 0:00:02]}
Rf1 {[%emt 0:00:01]} 70. Ke5 {[%emt 0:00:03]} Re1+ {[%emt 0:00:01]} 71. Kf6 {
[%emt 0:00:05]} Rf1 {[%emt 0:00:01]} 72. Rxg6 {[%emt 0:00:01]} Rxf4+ {[%emt 0:
00:02]} 73. Kg7 {[%emt 0:00:00]} Rf7+ {[%emt 0:00:03]} 74. Kh8 {[%emt 0:00:05]}
Rf1 {[%emt 0:00:10]} 75. Rg8+ {[%emt 0:00:01]} Kf7 {[%emt 0:00:02]} 76. g6+ {
[%emt 0:00:03]} Ke7 {[%emt 0:00:03]} 77. Kg7 {[%emt 0:00:03]} Rg1 {[%emt 0:00:
04]} 78. Ra8 {[%emt 0:00:03]} Rh1 {[%emt 0:00:07]} 79. Kg8 {[%emt 0:00:02]} Rh2
{[%emt 0:00:02]} 80. g7 {[%emt 0:00:02]} Rh1 {[%emt 0:00:03]} 81. Ra7+ {
[%emt 0:00:05]} Ke8 {[%emt 0:00:02]} 82. Ra4 {[%emt 0:00:02]} Re1 {[%emt 0:00:
03]} 83. Ra6 {[%emt 0:00:04]} Re2 {[%emt 0:00:02]} 84. Kh7 {[%emt 0:00:04]}
Rh2+ {[%emt 0:00:02]} 85. Rh6 {[%emt 0:00:03]} Rg2 {[%emt 0:00:04]} 86. g8=Q+ {
[%emt 0:00:02]} Rxg8 {[%emt 0:00:01]} 87. Kxg8 {[%emt 0:00:01] Diakonova, Ekaterina won by
resignation} 1-0

[Event "Live Chess"]
[Site "Chess.com"]
[Date "2020.05.16"]
[Round "3.23"]
[White "Sucikova, Svetlana"]
[Black "Diakonova, Ekaterina"]
[Result "1/2-1/2"]
[ECO "D94"]
[WhiteElo "2125"]
[BlackElo "2134"]
[PlyCount "126"]
[EventDate "2020.??.??"]
[TimeControl "180+2"]
[WhiteClock "0:00:21"]
[BlackClock "0:00:57"]

1. Nf3 {[%emt 0:00:00]} d5 {[%emt 0:00:02]} 2. e3 {[%emt 0:00:03]} Nf6 {
[%emt 0:00:02]} 3. c4 {[%emt 0:00:01]} c6 {[%emt 0:00:07]} 4. b3 {[%emt 0:00:
01]} g6 {[%emt 0:00:05]} 5. Bb2 {[%emt 0:00:02]} Bg7 {[%emt 0:00:01]} 6. Be2 {
[%emt 0:00:01]} O-O {[%emt 0:00:02]} 7. O-O {[%emt 0:00:02]} Nbd7 {[%emt 0:00:
22]} 8. Nc3 {[%emt 0:00:05]} Re8 {[%emt 0:00:05]} 9. d4 {[%emt 0:00:01]} b6 {
[%emt 0:00:11]} 10. Rc1 {[%emt 0:00:06]} Bb7 {[%emt 0:00:01]} 11. Ne5 {[%emt 0:
00:06]} Nxe5 {[%emt 0:00:11]} 12. dxe5 {[%emt 0:00:00]} Ne4 {[%emt 0:00:02]}
13. cxd5 {[%emt 0:00:08]} Nxc3 {[%emt 0:00:03]} 14. Bxc3 {[%emt 0:00:04]} Qxd5
{[%emt 0:00:21]} 15. Qxd5 {[%emt 0:00:08]} cxd5 {[%emt 0:00:03]} 16. Bd4 {
[%emt 0:00:01]} Rac8 {[%emt 0:00:14]} 17. Bb5 {[%emt 0:00:03]} Rxc1 {[%emt 0:
00:02]} 18. Rxc1 {[%emt 0:00:00]} Rc8 {[%emt 0:00:01]} 19. Rxc8+ {[%emt 0:00:
02]} Bxc8 {[%emt 0:00:01]} 20. Bc6 {[%emt 0:00:01]} e6 {[%emt 0:00:29]} 21. Bb2
{[%emt 0:00:08]} Bf8 {[%emt 0:00:04]} 22. Kf1 {[%emt 0:00:04]} Ba6+ {[%emt 0:
00:10]} 23. Kg1 {[%emt 0:00:04]} Bd3 {[%emt 0:00:19]} 24. f3 {[%emt 0:00:21]}
Bc5 {[%emt 0:00:02]} 25. Kf2 {[%emt 0:00:02]} Kf8 {[%emt 0:00:01]} 26. Bd4 {
[%emt 0:00:02]} Ba3 {[%emt 0:00:02]} 27. e4 {[%emt 0:00:30]} dxe4 {[%emt 0:00:
19]} 28. Bxe4 {[%emt 0:00:00]} Bxe4 {[%emt 0:00:02]} 29. fxe4 {[%emt 0:00:00]}
Ke7 {[%emt 0:00:06]} 30. Ke2 {[%emt 0:00:03]} Kd7 {[%emt 0:00:04]} 31. Kd3 {
[%emt 0:00:01]} Kc6 {[%emt 0:00:02]} 32. Bc3 {[%emt 0:00:07]} Kb5 {[%emt 0:00:
03]} 33. Bd2 {[%emt 0:00:09]} Bb2 {[%emt 0:00:04]} 34. Bc3 {[%emt 0:00:05]} Ba3
{[%emt 0:00:04]} 35. h3 {[%emt 0:00:03]} h5 {[%emt 0:00:02]} 36. g4 {[%emt 0:
00:02]} hxg4 {[%emt 0:00:02]} 37. hxg4 {[%emt 0:00:00]} Kc6 {[%emt 0:00:05]}
38. Kc4 {[%emt 0:00:02]} b5+ {[%emt 0:00:02]} 39. Kd3 {[%emt 0:00:01]} Be7 {
[%emt 0:00:03]} 40. Bd4 {[%emt 0:00:02]} a5 {[%emt 0:00:01]} 41. Bc3 {[%emt 0:
00:02]} Bc5 {[%emt 0:00:01]} 42. Bb2 {[%emt 0:00:04]} Bb6 {[%emt 0:00:01]} 43.
Bc3 {[%emt 0:00:02]} Bc7 {[%emt 0:00:02]} 44. Bb2 {[%emt 0:00:01]} Bb8 {
[%emt 0:00:03]} 45. Bc3 {[%emt 0:00:02]} Bc7 {[%emt 0:00:01]} 46. Ba1 {[%emt 0:
00:02]} Bb6 {[%emt 0:00:01]} 47. Bc3 {[%emt 0:00:02]} Kd7 {[%emt 0:00:02]} 48.
Bb2 {[%emt 0:00:04]} Kc6 {[%emt 0:00:02]} 49. Ba1 {[%emt 0:00:03]} Ba7 {
[%emt 0:00:03]} 50. Bc3 {[%emt 0:00:02]} Bb6 {[%emt 0:00:01]} 51. Ba1 {[%emt 0:
00:03]} Bc7 {[%emt 0:00:03]} 52. Bb2 {[%emt 0:00:03]} Bb8 {[%emt 0:00:02]} 53.
Bc3 {[%emt 0:00:01]} b4 {[%emt 0:00:02]} 54. Bd4 {[%emt 0:00:06]} Kb5 {[%emt 0:
00:01]} 55. Ke3 {[%emt 0:00:13]} Bc7 {[%emt 0:00:01]} 56. Kf3 {[%emt 0:00:21]}
Bd8 {[%emt 0:00:01]} 57. Kf4 {[%emt 0:00:03]} Be7 {[%emt 0:00:03]} 58. Kf3 {
[%emt 0:00:03]} Bg5 {[%emt 0:00:02]} 59. Ke2 {[%emt 0:00:03]} Bf4 {[%emt 0:00:
04]} 60. Kf3 {[%emt 0:00:02]} Bg5 {[%emt 0:00:01]} 61. Ke2 {[%emt 0:00:01]} Bf4
{[%emt 0:00:01]} 62. Kd3 {[%emt 0:00:01]} Bg3 {[%emt 0:00:06]} 63. Ke2 {
[%emt 0:00:06]} Bf4 {[%emt 0:00:01] Game drawn by repetition} 1/2-1/2

[Event "Live Chess"]
[Site "Chess.com"]
[Date "2020.05.16"]
[Round "3.24"]
[White "Diakonova, Ekaterina"]
[Black "Sucikova, Svetlana"]
[Result "0-1"]
[ECO "B18"]
[WhiteElo "2126"]
[BlackElo "2135"]
[PlyCount "88"]
[EventDate "2020.??.??"]
[TimeControl "180+2"]
[WhiteClock "0:00:31"]
[BlackClock "0:00:13"]

1. e4 {[%emt 0:00:00]} c6 {[%emt 0:00:02]} 2. d4 {[%emt 0:00:01]} d5 {[%emt 0:
00:01]} 3. Nc3 {[%emt 0:00:00]} dxe4 {[%emt 0:00:01]} 4. Nxe4 {[%emt 0:00:00]}
Bf5 {[%emt 0:00:01]} 5. Ng3 {[%emt 0:00:01]} Bg6 {[%emt 0:00:00]} 6. Nf3 {
[%emt 0:00:00]} Nd7 {[%emt 0:00:01]} 7. Bd3 {[%emt 0:00:01]} e6 {[%emt 0:00:01]
} 8. O-O {[%emt 0:00:01]} Ngf6 {[%emt 0:00:01]} 9. b3 {[%emt 0:00:01]} Be7 {
[%emt 0:00:03]} 10. Bb2 {[%emt 0:00:01]} O-O {[%emt 0:00:02]} 11. c4 {[%emt 0:
00:01]} Qc7 {[%emt 0:00:05]} 12. Bxg6 {[%emt 0:00:02]} hxg6 {[%emt 0:00:02]}
13. Qc2 {[%emt 0:00:01]} c5 {[%emt 0:00:07]} 14. Rad1 {[%emt 0:00:04]} cxd4 {
[%emt 0:00:03]} 15. Nxd4 {[%emt 0:00:02]} a6 {[%emt 0:00:02]} 16. a3 {[%emt 0:
00:03]} Rac8 {[%emt 0:00:03]} 17. Qe2 {[%emt 0:00:34]} Rfe8 {[%emt 0:00:20]}
18. Rfe1 {[%emt 0:00:26]} Bc5 {[%emt 0:00:07]} 19. Rc1 {[%emt 0:00:14]} Qb6 {
[%emt 0:00:06]} 20. Red1 {[%emt 0:01:15]} Bxd4 {[%emt 0:00:17]} 21. Rxd4 {
[%emt 0:00:25]} Qxb3 {[%emt 0:00:09]} 22. h4 {[%emt 0:00:08]} b5 {[%emt 0:00:
36]} 23. Rc3 {[%emt 0:00:05]} Qa2 {[%emt 0:00:05]} 24. cxb5 {[%emt 0:00:07]}
Rxc3 {[%emt 0:00:14]} 25. Bxc3 {[%emt 0:00:01]} Qb1+ {[%emt 0:00:10]} 26. Kh2 {
[%emt 0:00:02]} Qxb5 {[%emt 0:00:06]} 27. Qxb5 {[%emt 0:00:02]} axb5 {[%emt 0:
00:00]} 28. Rb4 {[%emt 0:00:00]} Ra8 {[%emt 0:00:06]} 29. Bxf6 {[%emt 0:00:02]}
gxf6 {[%emt 0:00:09]} 30. Rxb5 {[%emt 0:00:02]} Rxa3 {[%emt 0:00:02]} 31. Rb7 {
[%emt 0:00:08]} Ne5 {[%emt 0:00:02]} 32. f3 {[%emt 0:00:03]} Ra2 {[%emt 0:00:
06]} 33. Kh3 {[%emt 0:00:03]} Kg7 {[%emt 0:00:05]} 34. Ne4 {[%emt 0:00:02]} Rc2
{[%emt 0:00:21]} 35. Ra7 {[%emt 0:00:02]} Rc6 {[%emt 0:00:02]} 36. Rb7 {
[%emt 0:00:03]} Nd3 {[%emt 0:00:07]} 37. Kg3 {[%emt 0:00:03]} Nc5 {[%emt 0:00:
07]} 38. Nxc5 {[%emt 0:00:02]} Rxc5 {[%emt 0:00:00]} 39. Ra7 {[%emt 0:00:01]}
f5 {[%emt 0:00:01]} 40. Rb7 {[%emt 0:00:03]} Kf6 {[%emt 0:00:01]} 41. Ra7 {
[%emt 0:00:01]} Rb5 {[%emt 0:00:01]} 42. Rb7 {[%emt 0:00:02]} Rxb7 {[%emt 0:00:
01]} 43. Kf2 {[%emt 0:00:03]} Rb4 {[%emt 0:00:01]} 44. Kg3 {[%emt 0:00:01]} g5
{[%emt 0:00:01] Sucikova, Svetlana won by resignation} 0-1

[Event "Live Chess"]
[Site "Chess.com"]
[Date "2020.05.16"]
[Round "4.11"]
[White "Sucikova, Svetlana"]
[Black "Bayat, Shohreh"]
[Result "1-0"]
[ECO "A11"]
[WhiteElo "2142"]
[BlackElo "2058"]
[PlyCount "83"]
[EventDate "2020.??.??"]
[TimeControl "180+2"]
[WhiteClock "0:00:44"]
[BlackClock "0:00:24"]

1. e3 {[%emt 0:00:00]} e6 {[%emt 0:00:00]} 2. c4 {[%emt 0:00:02]} d5 {[%emt 0:
00:02]} 3. Nc3 {[%emt 0:00:01]} c6 {[%emt 0:00:01]} 4. Nf3 {[%emt 0:00:01]} Bd6
{[%emt 0:00:03]} 5. b3 {[%emt 0:00:01]} Nf6 {[%emt 0:00:03]} 6. Bb2 {[%emt 0:
00:02]} e5 {[%emt 0:00:06]} 7. d4 {[%emt 0:00:06]} e4 {[%emt 0:00:02]} 8. Nd2 {
[%emt 0:00:23]} O-O {[%emt 0:00:02]} 9. Qc2 {[%emt 0:00:03]} a5 {[%emt 0:00:08]
} 10. cxd5 {[%emt 0:00:07]} cxd5 {[%emt 0:00:02]} 11. Nb5 {[%emt 0:00:01]} Nc6
{[%emt 0:00:30]} 12. Nxd6 {[%emt 0:00:09]} Qxd6 {[%emt 0:00:00]} 13. Qc5 {
[%emt 0:00:07]} Qe6 {[%emt 0:00:14]} 14. Be2 {[%emt 0:00:18]} Bd7 {[%emt 0:00:
01]} 15. O-O {[%emt 0:00:21]} Nb4 {[%emt 0:00:04]} 16. Qc7 {[%emt 0:00:10]}
Rfc8 {[%emt 0:00:20]} 17. Qe5 {[%emt 0:00:17]} Rc2 {[%emt 0:00:04]} 18. Bc1 {
[%emt 0:00:04]} Nxa2 {[%emt 0:00:05]} 19. Bd1 {[%emt 0:00:28]} Rxc1 {[%emt 0:
00:03]} 20. Rxa2 {[%emt 0:00:01]} b6 {[%emt 0:00:03]} 21. b4 {[%emt 0:00:15]}
Qxe5 {[%emt 0:00:05]} 22. dxe5 {[%emt 0:00:02]} Ng4 {[%emt 0:00:02]} 23. bxa5 {
[%emt 0:00:26]} Rxa5 {[%emt 0:00:15]} 24. Rb2 {[%emt 0:00:03]} b5 {[%emt 0:00:
06]} 25. Nb3 {[%emt 0:00:05]} Rca1 {[%emt 0:00:24]} 26. Nxa1 {[%emt 0:00:03]}
Rxa1 {[%emt 0:00:01]} 27. Bxg4 {[%emt 0:00:01]} Rxf1+ {[%emt 0:00:02]} 28. Kxf1
{[%emt 0:00:00]} Bxg4 {[%emt 0:00:01]} 29. Rxb5 {[%emt 0:00:02]} f6 {[%emt 0:
00:07]} 30. Rxd5 {[%emt 0:00:02]} Be6 {[%emt 0:00:12]} 31. Rd6 {[%emt 0:00:04]}
Kf7 {[%emt 0:00:02]} 32. exf6 {[%emt 0:00:02]} gxf6 {[%emt 0:00:01]} 33. Ke1 {
[%emt 0:00:01]} Ke7 {[%emt 0:00:03]} 34. Rb6 {[%emt 0:00:01]} f5 {[%emt 0:00:
02]} 35. Rb7+ {[%emt 0:00:01]} Bd7 {[%emt 0:00:03]} 36. Kd2 {[%emt 0:00:03]}
Kd6 {[%emt 0:00:03]} 37. Kc3 {[%emt 0:00:01]} h5 {[%emt 0:00:02]} 38. Kd4 {
[%emt 0:00:02]} Ke7 {[%emt 0:00:07]} 39. Rb6 {[%emt 0:00:02]} Be6 {[%emt 0:00:
04]} 40. Ke5 {[%emt 0:00:01]} Bd7 {[%emt 0:00:01]} 41. Rh6 {[%emt 0:00:01]} h4
{[%emt 0:00:02]} 42. Rxh4 {[%emt 0:00:01] Sucikova, Svetlana won by resignation} 1-0

[Event "Live Chess"]
[Site "Chess.com"]
[Date "2020.05.16"]
[Round "4.12"]
[White "Bayat, Shohreh"]
[Black "Sucikova, Svetlana"]
[Result "1/2-1/2"]
[ECO "B13"]
[WhiteElo "2060"]
[BlackElo "2140"]
[PlyCount "121"]
[EventDate "2020.??.??"]
[TimeControl "180+2"]
[WhiteClock "0:00:16"]
[BlackClock "0:01:12"]

1. e4 {[%emt 0:00:01]} c6 {[%emt 0:00:02]} 2. d4 {[%emt 0:00:01]} d5 {[%emt 0:
00:01]} 3. exd5 {[%emt 0:00:00]} cxd5 {[%emt 0:00:02]} 4. Bd3 {[%emt 0:00:01]}
Nc6 {[%emt 0:00:02]} 5. c3 {[%emt 0:00:01]} Qc7 {[%emt 0:00:02]} 6. Nf3 {
[%emt 0:00:03]} Bg4 {[%emt 0:00:05]} 7. Nbd2 {[%emt 0:00:03]} Nf6 {[%emt 0:00:
02]} 8. h3 {[%emt 0:00:01]} Bh5 {[%emt 0:00:02]} 9. O-O {[%emt 0:00:02]} e6 {
[%emt 0:00:02]} 10. Qb3 {[%emt 0:00:04]} Bg6 {[%emt 0:00:09]} 11. Bxg6 {
[%emt 0:00:09]} hxg6 {[%emt 0:00:00]} 12. Re1 {[%emt 0:00:02]} Bd6 {[%emt 0:00:
05]} 13. Nf1 {[%emt 0:00:17]} O-O {[%emt 0:00:04]} 14. Bg5 {[%emt 0:00:03]} Ne4
{[%emt 0:00:03]} 15. Be3 {[%emt 0:00:19]} Na5 {[%emt 0:00:04]} 16. Qc2 {
[%emt 0:00:08]} Rac8 {[%emt 0:00:08]} 17. N1d2 {[%emt 0:00:03]} Nxd2 {[%emt 0:
00:14]} 18. Nxd2 {[%emt 0:00:04]} b5 {[%emt 0:00:08]} 19. a3 {[%emt 0:00:02]}
Nc4 {[%emt 0:00:24]} 20. Nxc4 {[%emt 0:00:01]} Qxc4 {[%emt 0:00:00]} 21. Qe2 {
[%emt 0:00:07]} Qxe2 {[%emt 0:00:28]} 22. Rxe2 {[%emt 0:00:00]} a5 {[%emt 0:00:
01]} 23. Rf1 {[%emt 0:00:03]} Rc4 {[%emt 0:00:16]} 24. f4 {[%emt 0:00:03]} b4 {
[%emt 0:00:02]} 25. axb4 {[%emt 0:00:02]} axb4 {[%emt 0:00:00]} 26. Bd2 {
[%emt 0:00:05]} bxc3 {[%emt 0:00:02]} 27. bxc3 {[%emt 0:00:00]} Ra8 {[%emt 0:
00:07]} 28. Be1 {[%emt 0:00:05]} Bc7 {[%emt 0:00:16]} 29. Rf3 {[%emt 0:00:03]}
Ra1 {[%emt 0:00:04]} 30. Kf2 {[%emt 0:00:04]} Ba5 {[%emt 0:00:06]} 31. g4 {
[%emt 0:00:06]} Rc1 {[%emt 0:00:05]} 32. Ree3 {[%emt 0:00:17]} Rc8 {[%emt 0:00:
25]} 33. Ke2 {[%emt 0:00:23]} Rb1 {[%emt 0:00:06]} 34. f5 {[%emt 0:00:03]} gxf5
{[%emt 0:00:12]} 35. gxf5 {[%emt 0:00:01]} Rb6 {[%emt 0:00:02]} 36. Re5 {
[%emt 0:00:08]} Rbc6 {[%emt 0:00:02]} 37. fxe6 {[%emt 0:00:06]} fxe6 {[%emt 0:
00:00]} 38. Rfe3 {[%emt 0:00:02]} Bxc3 {[%emt 0:00:06]} 39. Bxc3 {[%emt 0:00:
01]} Rxc3 {[%emt 0:00:00]} 40. Rxe6 {[%emt 0:00:01]} Rc2+ {[%emt 0:00:06]} 41.
Kf3 {[%emt 0:00:04]} Rh2 {[%emt 0:00:02]} 42. Kg3 {[%emt 0:00:02]} Rd2 {
[%emt 0:00:02]} 43. Rd6 {[%emt 0:00:04]} Rxd4 {[%emt 0:00:02]} 44. Re7 {
[%emt 0:00:02]} Rc3+ {[%emt 0:00:03]} 45. Kf2 {[%emt 0:00:03]} Rd2+ {[%emt 0:
00:02]} 46. Ke1 {[%emt 0:00:02]} Rdd3 {[%emt 0:00:12]} 47. Rdd7 {[%emt 0:00:01]
} Re3+ {[%emt 0:00:01]} 48. Kd2 {[%emt 0:00:09]} Rcd3+ {[%emt 0:00:04]} 49. Kc2
{[%emt 0:00:03]} Rxe7 {[%emt 0:00:02]} 50. Rd8+ {[%emt 0:00:02]} Kf7 {[%emt 0:
00:02]} 51. Kxd3 {[%emt 0:00:01]} Re5 {[%emt 0:00:01]} 52. Rd6 {[%emt 0:00:02]}
g6 {[%emt 0:00:02]} 53. Kd4 {[%emt 0:00:01]} Rf5 {[%emt 0:00:01]} 54. Rxd5 {
[%emt 0:00:06]} Rxd5+ {[%emt 0:00:00]} 55. Kxd5 {[%emt 0:00:01]} Kf6 {[%emt 0:
00:01]} 56. Ke4 {[%emt 0:00:01]} Kg5 {[%emt 0:00:01]} 57. Kf3 {[%emt 0:00:01]}
Kh4 {[%emt 0:00:01]} 58. Kg2 {[%emt 0:00:01]} Kg5 {[%emt 0:00:01]} 59. Kg3 {
[%emt 0:00:01]} Kf5 {[%emt 0:00:01]} 60. Kf3 {[%emt 0:00:01]} Kg5 {[%emt 0:00:
01]} 61. Kg3 {[%emt 0:00:01] Game drawn by agreement} 1/2-1/2

[Event "Live Chess"]
[Site "Chess.com"]
[Date "2020.05.16"]
[Round "4.13"]
[White "Sucikova, Svetlana"]
[Black "Bayat, Shohreh"]
[Result "1-0"]
[ECO "A85"]
[WhiteElo "2147"]
[BlackElo "2054"]
[PlyCount "81"]
[EventDate "2020.??.??"]
[TimeControl "180+2"]
[WhiteClock "0:00:51"]
[BlackClock "0:00:12"]

1. Nf3 {[%emt 0:00:04]} e6 {[%emt 0:00:01]} 2. c4 {[%emt 0:00:02]} d5 {[%emt 0:
00:01]} 3. e3 {[%emt 0:00:01]} c6 {[%emt 0:00:02]} 4. Nc3 {[%emt 0:00:01]} f5 {
[%emt 0:00:02]} 5. Be2 {[%emt 0:00:04]} Nf6 {[%emt 0:00:01]} 6. d4 {[%emt 0:00:
03]} Bd6 {[%emt 0:00:01]} 7. Ne5 {[%emt 0:00:03]} Nbd7 {[%emt 0:00:05]} 8. Bh5+
{[%emt 0:00:09]} g6 {[%emt 0:00:14]} 9. Nxd7 {[%emt 0:00:19]} Bxd7 {[%emt 0:00:
16]} 10. Be2 {[%emt 0:00:02]} O-O {[%emt 0:00:02]} 11. O-O {[%emt 0:00:09]} e5
{[%emt 0:00:01]} 12. cxd5 {[%emt 0:00:06]} exd4 {[%emt 0:00:08]} 13. Qxd4 {
[%emt 0:00:00]} c5 {[%emt 0:00:18]} 14. Qc4 {[%emt 0:00:18]} Qe7 {[%emt 0:00:
04]} 15. Rd1 {[%emt 0:00:13]} Qe5 {[%emt 0:00:11]} 16. g3 {[%emt 0:00:13]} a6 {
[%emt 0:00:05]} 17. a4 {[%emt 0:00:06]} b5 {[%emt 0:00:12]} 18. Qd3 {[%emt 0:
00:05]} bxa4 {[%emt 0:00:18]} 19. Qc2 {[%emt 0:00:34]} Ne4 {[%emt 0:00:16]} 20.
Nxa4 {[%emt 0:00:15]} h5 {[%emt 0:00:06]} 21. Nb6 {[%emt 0:00:06]} Rad8 {
[%emt 0:00:03]} 22. Nc4 {[%emt 0:00:17]} Qf6 {[%emt 0:00:10]} 23. Nxd6 {
[%emt 0:00:02]} Qxd6 {[%emt 0:00:05]} 24. Rxa6 {[%emt 0:00:01]} Qe5 {[%emt 0:
00:05]} 25. Rxg6+ {[%emt 0:00:02]} Kh7 {[%emt 0:00:03]} 26. Ra6 {[%emt 0:00:16]
} h4 {[%emt 0:00:01]} 27. f4 {[%emt 0:00:10]} Qg7 {[%emt 0:00:06]} 28. g4 {
[%emt 0:00:02]} fxg4 {[%emt 0:00:15]} 29. Qxe4+ {[%emt 0:00:03]} Bf5 {[%emt 0:
00:00]} 30. Qe5 {[%emt 0:00:05]} Qg8 {[%emt 0:00:06]} 31. Ra7+ {[%emt 0:00:03]}
Rd7 {[%emt 0:00:02]} 32. Rxd7+ {[%emt 0:00:05]} Bxd7 {[%emt 0:00:00]} 33. Qh5+
{[%emt 0:00:02]} Kg7 {[%emt 0:00:01]} 34. Qg5+ {[%emt 0:00:01]} Kh7 {[%emt 0:
00:01]} 35. Bd3+ {[%emt 0:00:02]} Bf5 {[%emt 0:00:06]} 36. Bxf5+ {[%emt 0:00:
02]} Rxf5 {[%emt 0:00:00]} 37. Qxf5+ {[%emt 0:00:01]} Kh8 {[%emt 0:00:02]} 38.
Qh5+ {[%emt 0:00:02]} Kg7 {[%emt 0:00:01]} 39. Qg5+ {[%emt 0:00:01]} Kf7 {
[%emt 0:00:01]} 40. Qxg8+ {[%emt 0:00:01]} Kxg8 {[%emt 0:00:01]} 41. d6 {
[%emt 0:00:01] Sucikova, Svetlana won by resignation} 1-0